fUST/lending_fUST_20251125
["ID","MTS","AMOUNT","RATE_DAILY","PERIOD"]
[394878066,1764051677440,-690.40278011,6.721e-05,2]
[394878067,1764051677456,-690.40278011,6.721e-05,2]
[394878068,1764051677475,-690.40278011,6.721e-05,2]
[394878069,1764051677487,-690.40278011,6.721e-05,2]
[394878070,1764051677504,-690.40278011,6.721e-05,2]
[394878071,1764051677515,-690.40278011,6.721e-05,2]
[394878072,1764051677533,-690.40278011,6.721e-05,2]
[394878073,1764051677544,-690.40278011,6.721e-05,2]
[394878074,1764051677562,-690.40278011,6.721e-05,2]
[394878075,1764051677578,-690.40278011,6.721e-05,2]
[394878076,1764051677589,-690.40278011,6.721e-05,2]
[394878077,1764051677605,-690.40278011,6.721e-05,2]
[394878078,1764051677620,-690.40278011,6.721e-05,2]
[394878079,1764051677637,-690.40278011,6.721e-05,2]
[394878080,1764051677647,-690.40278011,6.721e-05,2]
[394878081,1764051677658,-690.40278011,6.721e-05,2]
[394878082,1764051677675,-690.40278011,6.721e-05,2]
[394878083,1764051677691,-690.40278011,6.721e-05,2]
[394878084,1764051677707,-690.40278011,6.721e-05,2]
[394878085,1764051677718,-690.40278011,6.721e-05,2]
[394878086,1764051677735,-690.40278011,6.721e-05,2]
[394878087,1764051677751,-690.40278011,6.721e-05,2]
[394878088,1764051677764,-690.40278011,6.721e-05,2]
[394878089,1764051677776,-29765.43303898,6.721e-05,2]
[394878090,1764051678260,-1411.99679964,6.721e-05,2]
[394878091,1764051678275,-10000.01,6.721e-05,2]
[394878092,1764051678300,-10000.01,6.721e-05,2]
[394878093,1764051678314,-10000.01,6.721e-05,2]
[394878094,1764051678351,-10000.01,6.721e-05,2]
[394878095,1764051678377,-10000.01,6.721e-05,2]
[394878096,1764051678392,-10000.01,6.721e-05,2]
[394878097,1764051678424,-10000.01,6.721e-05,2]
[394878098,1764051678560,-10000.01,6.721e-05,2]
[394878103,1764051693490,228.93448887,6.654e-05,2]
[394878104,1764051702754,152.158,6.587e-05,2]
[394878123,1764051843686,-1200.0,6.718e-05,2]
[394878124,1764051843713,-300.0,6.718e-05,2]
[394878125,1764051843739,-237.66302014,6.719e-05,2]
[394878126,1764051843766,-615.00187465,6.719e-05,2]
[394878127,1764051843793,-272.34056949,6.719e-05,2]
[394878128,1764051843829,-730.25929063,6.719e-05,2]
[394878129,1764051843863,-730.25929063,6.719e-05,2]
[394878130,1764051843894,-730.25929063,6.719e-05,2]
[394878131,1764051843925,-730.25929063,6.719e-05,2]
[394878132,1764051843965,-730.25929063,6.719e-05,2]
[394878133,1764051844001,-730.25929063,6.719e-05,2]
[394878134,1764051844032,-730.25929063,6.719e-05,2]
[394878135,1764051844065,-730.25929063,6.719e-05,2]
[394878136,1764051844101,-730.25929063,6.719e-05,2]
[394878137,1764051844135,-730.25929063,6.719e-05,2]
[394878138,1764051844156,-730.25929063,6.719e-05,2]
[394878139,1764051844166,-469.74070937,6.719e-05,2]
[394878140,1764051844185,-260.51858126,6.719e-05,2]
[394878141,1764051844194,-39.48141874,6.719e-05,2]
[394878142,1764051844207,-237.66302014,6.719e-05,2]
[394878143,1764051844218,-453.11485175,6.719e-05,2]
[394878144,1764051844228,-161.8870229,6.719e-05,2]
[394878145,1764051844283,-272.34056949,6.719e-05,2]
[394878146,1764051844318,-296.03169824,6.719e-05,2]
[394878147,1764051844327,-434.22759239,6.719e-05,2]
[394878148,1764051844345,-296.03169824,6.719e-05,2]
[394878149,1764051844354,-434.22759239,6.719e-05,2]
[394878150,1764051844367,-296.03169824,6.719e-05,2]
[394878151,1764051844375,-434.22759239,6.719e-05,2]
[394878152,1764051844392,-296.03169824,6.719e-05,2]
[394878153,1764051844402,-434.22759239,6.719e-05,2]
[394878154,1764051844419,-296.03169824,6.719e-05,2]
[394878155,1764051844428,-434.22759239,6.719e-05,2]
[394878156,1764051844440,-296.03169824,6.719e-05,2]
[394878157,1764051844448,-434.22759239,6.719e-05,2]
[394878158,1764051844467,-296.03169824,6.719e-05,2]
[394878159,1764051844478,-434.22759239,6.719e-05,2]
[394878160,1764051844497,-296.03169824,6.719e-05,2]
[394878161,1764051844507,-434.22759239,6.719e-05,2]
[394878162,1764051844518,-296.03169824,6.719e-05,2]
[394878163,1764051844528,-434.22759239,6.719e-05,2]
[394878164,1764051844540,-296.03169824,6.719e-05,2]
[394878165,1764051844551,-434.22759239,6.719e-05,2]
[394878166,1764051844565,-144.80325884,6.719e-05,2]
[394878168,1764051864752,9618.91751113,6.621e-05,2]
[394878169,1764051864786,10000.01,6.621e-05,2]
[394878170,1764051864815,10000.01,6.621e-05,2]
[394878171,1764051871572,-300.0,6.621e-05,2]
[394878172,1764051873624,-168.11075791,6.621e-05,2]
[394878173,1764051876504,-216.37427149,6.621e-05,2]
[394878176,1764051878661,-202.95329343,6.621e-05,2]
[394878177,1764051880304,-291.64286549,6.621e-05,2]
[394878178,1764051883258,-266.0,6.621e-05,2]
[394878181,1764051888316,-164.87319919,6.555e-05,2]
[394878182,1764051891089,-151.65450905,6.555e-05,2]
[394878183,1764051892930,-175.26723728,6.555e-05,2]
[394878184,1764051892956,-39.18993775,6.621e-05,2]
[394878185,1764051894554,-299.58265742,6.621e-05,2]
[394878186,1764051897128,-166.55931974,6.621e-05,2]
[394878188,1764051899844,-234.05572851,6.621e-05,2]
[394878189,1764051903441,-160.35187738,6.62e-05,2]
[394878190,1764051906129,-139.64812262,6.62e-05,2]
[394878191,1764051906152,-126.1690359,6.62e-05,2]
[394878192,1764051908109,-173.8309641,6.62e-05,2]
[394878193,1764051908135,-37.60713134,6.62e-05,2]
[394878194,1764051910008,-237.56741423,6.554e-05,2]
[394878195,1764051914334,-181.76015069,6.554e-05,2]
[394878196,1764051914360,-65.75798243,6.62e-05,2]
[394878197,1764051919224,-305.0946517,6.62e-05,2]
[394878201,1764051922408,-187.79861004,6.62e-05,2]
[394878202,1764051926668,-183.6345398,6.554e-05,2]
[394878203,1764051927694,-134.31847633,6.554e-05,2]
[394878204,1764051927720,-178.28033892,6.62e-05,2]
[394878206,1764051948749,312.59881525,6.488e-05,2]
[394878226,1764052142083,-183.55548775,6.537e-05,2]
[394878227,1764052144079,224.43680621,6.472e-05,2]
[394878228,1764052159476,15114.50531679,0.0001111,3]
[394878229,1764052171474,-129.0433275,6.537e-05,2]
[394878230,1764052171499,-126.91426208,6.57e-05,2]
[394878235,1764052215877,-111.04775335,6.57e-05,2]
[394878236,1764052215902,-139.16513926,6.602e-05,2]
[394878237,1764052218466,-252.00105545,6.602e-05,2]
[394878255,1764052232184,-501.7934699,6.602e-05,2]
[394878256,1764052232196,-307.04033539,6.602e-05,2]
[394878257,1764052232205,-275.67685667,6.603e-05,2]
[394878258,1764052232217,-224.32314333,6.603e-05,2]
[394878259,1764052232225,-216.67685667,6.603e-05,2]
[394878287,1764052238152,-283.32314333,6.603e-05,2]
[394878288,1764052238162,-293.31759866,6.603e-05,2]
[394878289,1764052238172,-500.0,6.603e-05,2]
[394878290,1764052238182,-334.47660429,6.603e-05,2]
[394878291,1764052238273,-165.52339571,6.603e-05,2]
[394878292,1764052238283,-500.0,6.603e-05,2]
[394878293,1764052238293,-231.0,6.617e-05,2]
[394878294,1764052238303,-216.49762284,6.617e-05,2]
[394878678,1764052244989,-3e-08,6.617e-05,2]
[394878681,1764052245011,-83.50237713,6.617e-05,2]
[394878683,1764052245021,-300.0,6.617e-05,2]
[394878685,1764052245030,-500.0,6.617e-05,2]
[394878687,1764052245040,-500.0,6.617e-05,2]
[394878689,1764052245050,-500.0,6.617e-05,2]
[394878692,1764052245059,-500.0,6.617e-05,2]
[394878696,1764052245068,-500.0,6.617e-05,2]
[394878700,1764052245078,-586.47668063,6.617e-05,2]
[394878704,1764052245090,-500.0,6.617e-05,2]
[394878707,1764052245099,-500.0,6.617e-05,2]
[394878710,1764052245108,-500.0,6.617e-05,2]
[394878713,1764052245117,-500.0,6.617e-05,2]
[394878716,1764052245126,-500.0,6.617e-05,2]
[394878719,1764052245135,-500.0,6.617e-05,2]
[394878721,1764052245145,-500.0,6.617e-05,2]
[394878723,1764052245154,-500.0,6.617e-05,2]
[394878724,1764052245163,-500.0,6.617e-05,2]
[394878725,1764052245173,-500.0,6.617e-05,2]
[394878726,1764052245182,-500.0,6.617e-05,2]
[394878727,1764052245192,-500.0,6.617e-05,2]
[394878728,1764052245202,-500.0,6.617e-05,2]
[394878730,1764052245211,-500.0,6.617e-05,2]
[394878732,1764052245220,-500.0,6.617e-05,2]
[394878734,1764052245229,-500.0,6.617e-05,2]
[394878736,1764052245238,-500.0,6.617e-05,2]
[394878738,1764052245247,-500.0,6.617e-05,2]
[394878740,1764052245256,-500.0,6.617e-05,2]
[394878742,1764052245266,-500.0,6.617e-05,2]
[394878744,1764052245276,-500.0,6.617e-05,2]
[394878746,1764052245285,-500.0,6.617e-05,2]
[394878748,1764052245295,-367.0,6.618e-05,2]
[394878750,1764052245303,-430.50131225,6.619e-05,2]
[394878752,1764052245313,-280.66899,6.621e-05,2]
[394878754,1764052245323,-280.66899,6.621e-05,2]
[394878756,1764052245332,-280.66899,6.621e-05,2]
[394878758,1764052245341,-280.66899,6.621e-05,2]
[394878760,1764052245351,-858196.59365713,6.621e-05,2]
[394878762,1764052245361,-151.0,6.721e-05,2]
[394878764,1764052245370,-1817.96524818,6.88e-05,2]
[394878766,1764052245380,-411.3839013,6.94e-05,2]
[394878768,1764052245390,-404.7937247,6.94e-05,2]
[394878770,1764052245399,-1000.0,7.151e-05,2]
[394878772,1764052245408,-1000.0,7.151e-05,2]
[394878774,1764052245417,-1000.0,7.151e-05,2]
[394878776,1764052245427,-124.80960718,7.151e-05,2]
[394878788,1764052246951,-634.58328759,7.151e-05,2]
[394878789,1764052247493,-105.79985844,7.151e-05,2]
[394878791,1764052290430,157.097203,0.0001111,3]
[394878792,1764052290962,-444.87775399,6.603e-05,2]
[394878793,1764052294197,-55.12224601,6.603e-05,2]
[394878794,1764052294229,-147.37970464,6.617e-05,2]
[394878795,1764052297347,-205.83282348,6.617e-05,2]
[394878796,1764052299546,-295.25583987,6.617e-05,2]
[394878797,1764052301622,-209.73394624,6.617e-05,2]
[394878798,1764052301655,-215.15572609,6.617e-05,2]
[394878799,1764052303246,-183.34281655,6.617e-05,2]
[394878800,1764052304930,-174.04848096,6.617e-05,2]
[394878801,1764052308062,-240.66228451,6.617e-05,2]
[394878802,1764052312982,-44.99300612,6.617e-05,2]
[394878803,1764052313014,-178.4878793,6.617e-05,2]
[394878804,1764052315129,-167.48231775,6.617e-05,2]
[394878805,1764052317952,-210.04305398,6.617e-05,2]
[394878806,1764052320199,-270.62164725,6.617e-05,2]
[394878807,1764052323140,-271.61691028,6.616e-05,2]
[394878808,1764052325615,-28.38308972,6.616e-05,2]
[394878809,1764052325648,-31.56741595,6.617e-05,2]
[394878810,1764052325686,-107.44625191,6.617e-05,2]
[394878811,1764052327663,-171.08889022,6.617e-05,2]
[394878812,1764052329938,-283.43718056,6.617e-05,2]
[394878813,1764052332677,-296.22999154,6.617e-05,2]
[394878814,1764052332712,-3.77000846,6.617e-05,2]
[394878815,1764052334730,-258.87459122,6.617e-05,2]
[394878816,1764052337308,-243.88188664,6.617e-05,2]
[394878817,1764052341231,-289.95694602,6.617e-05,2]
[394878818,1764052342797,-153.59194599,6.617e-05,2]
[394878819,1764052344269,-56.45110799,6.617e-05,2]
[394878820,1764052344303,-199.0885471,6.617e-05,2]
[394878821,1764052349048,-152.58728081,6.617e-05,2]
[394878822,1764052349081,-92.92834461,6.617e-05,2]
[394878823,1764052350693,-155.7719901,6.617e-05,2]
[394878824,1764052352801,-261.60846901,6.617e-05,2]
[394878825,1764052354418,-347.89351051,6.617e-05,2]
[394878826,1764052354451,-131.37267276,6.617e-05,2]
[394878827,1764052358222,-289.17207496,6.617e-05,2]
[394878828,1764052361847,-283.66923729,6.617e-05,2]
[394878829,1764052363831,-153.98832922,6.617e-05,2]
[394878830,1764052363867,-20.71541425,6.617e-05,2]
[394878842,1764052380954,-188.92525109,6.616e-05,2]
[394878843,1764052382802,-154.18634423,6.616e-05,2]
[394878845,1764052384310,-270.94374857,6.615e-05,2]
[394878847,1764052385919,-29.05625143,6.615e-05,2]
[394878848,1764052385944,-156.88840468,6.616e-05,2]
[394878849,1764052385982,-51.92625241,6.616e-05,2]
[394878850,1764052387526,-197.23116137,6.616e-05,2]
[394878851,1764052389107,-300.0,6.616e-05,2]
[394878853,1764052390888,-5.54396289,6.616e-05,2]
[394878854,1764052390913,-363.73578252,6.616e-05,2]
[394878857,1764052392646,-136.26421748,6.616e-05,2]
[394878858,1764052392676,-43.6375892,6.616e-05,2]
[394878861,1764052394150,-274.62470413,6.616e-05,2]
[394878862,1764052396646,-161.94663041,6.616e-05,2]
[394878864,1764052399782,-19.79107626,6.616e-05,2]
[394878865,1764052399818,-227.84698348,6.616e-05,2]
[394878867,1764052402525,-304.52639219,6.616e-05,2]
[394878869,1764052404533,-22.328001,6.616e-05,2]
[394878870,1764052404567,-303.8404319,6.616e-05,2]
[394878872,1764052407006,-250.86094477,6.616e-05,2]
[394878873,1764052407038,-131.19360128,6.616e-05,2]
[394878876,1764052412974,-175.45275805,6.616e-05,2]
[394878878,1764052416295,-167.41838742,6.616e-05,2]
[394878880,1764052419453,-80.63662992,6.616e-05,2]
[394878881,1764052419483,-251.88105233,6.616e-05,2]
[394878882,1764052420950,-188.92525109,6.616e-05,2]
[394878884,1764052425927,-113.89507325,6.616e-05,2]
[394878885,1764052425969,-250.71395603,6.616e-05,2]
[394878886,1764052429004,-176.22626387,6.616e-05,2]
[394878888,1764052431647,-127.76115677,6.616e-05,2]
[394878889,1764052431691,-108.70150629,6.616e-05,2]
[394878890,1764052434884,-303.75263424,6.616e-05,2]
[394878891,1764052440044,-142.24723614,6.616e-05,2]
[394878892,1764052440085,-554.70137667,6.616e-05,2]
[394878893,1764052440124,-554.70137667,6.616e-05,2]
[394878894,1764052440162,-554.70137667,6.616e-05,2]
[394878895,1764052440199,-554.70137667,6.616e-05,2]
[394878896,1764052440236,-554.70137667,6.616e-05,2]
[394878897,1764052440273,-554.70137667,6.616e-05,2]
[394878898,1764052440310,-554.70137667,6.616e-05,2]
[394878899,1764052440346,-554.70137667,6.616e-05,2]
[394878900,1764052440381,-285.59212433,6.616e-05,2]
[394878901,1764052440526,-269.10925234,6.616e-05,2]
[394878902,1764052440563,-554.70137667,6.616e-05,2]
[394878903,1764052440598,-554.70137667,6.616e-05,2]
[394878904,1764052440634,-554.70137667,6.616e-05,2]
[394878905,1764052440669,-554.70137667,6.616e-05,2]
[394878906,1764052440704,-554.70137667,6.616e-05,2]
[394878907,1764052440742,-554.70137667,6.616e-05,2]
[394878908,1764052440781,-554.70137667,6.616e-05,2]
[394878909,1764052440822,-554.70137667,6.616e-05,2]
[394878910,1764052440863,-31.86809193,6.616e-05,2]
[394878911,1764052440982,-522.83328474,6.616e-05,2]
[394878912,1764052441021,-554.70137667,6.616e-05,2]
[394878913,1764052441058,-554.70137667,6.616e-05,2]
[394878914,1764052441098,-554.70137667,6.616e-05,2]
[394878915,1764052441136,-554.70137667,6.616e-05,2]
[394878916,1764052441174,-554.70137667,6.616e-05,2]
[394878917,1764052441210,-554.70137667,6.616e-05,2]
[394878918,1764052441246,-554.70137667,6.616e-05,2]
[394878919,1764052441285,-554.70137667,6.616e-05,2]
[394878920,1764052441378,-554.70137667,6.616e-05,2]
[394878921,1764052441414,-554.70137667,6.616e-05,2]
[394878922,1764052441449,-554.70137667,6.616e-05,2]
[394878923,1764052441483,-554.70137667,6.616e-05,2]
[394878924,1764052441519,-554.70137667,6.616e-05,2]
[394878925,1764052441558,-554.70137667,6.616e-05,2]
[394878926,1764052441594,-554.70137667,6.616e-05,2]
[394878927,1764052441628,-554.70137667,6.616e-05,2]
[394878928,1764052441661,-554.70137667,6.616e-05,2]
[394878929,1764052441750,-554.70137667,6.616e-05,2]
[394878930,1764052441787,-554.70137667,6.616e-05,2]
[394878931,1764052441836,-554.70137667,6.616e-05,2]
[394878932,1764052442098,-554.70137667,6.616e-05,2]
[394878933,1764052442137,-554.70137667,6.616e-05,2]
[394878934,1764052442175,-554.70137667,6.616e-05,2]
[394878935,1764052442211,-554.70137667,6.616e-05,2]
[394878936,1764052442248,-554.70137667,6.616e-05,2]
[394878937,1764052442286,-554.70137667,6.616e-05,2]
[394878938,1764052443699,-554.70137667,6.616e-05,2]
[394878939,1764052443738,-554.70137667,6.616e-05,2]
[394878940,1764052443778,-554.70137667,6.616e-05,2]
[394878941,1764052443815,-554.70137667,6.616e-05,2]
[394878942,1764052443851,-554.70137667,6.616e-05,2]
[394878943,1764052443890,-554.70137667,6.616e-05,2]
[394878944,1764052443927,-543.2810542,6.616e-05,2]
[394878945,1764052443963,-543.2810542,6.616e-05,2]
[394878946,1764052444007,-543.2810542,6.616e-05,2]
[394878947,1764052444064,-543.2810542,6.616e-05,2]
[394878948,1764052444101,-543.2810542,6.616e-05,2]
[394878949,1764052444138,-543.2810542,6.616e-05,2]
[394878950,1764052444174,-543.2810542,6.616e-05,2]
[394878951,1764052444212,-543.2810542,6.616e-05,2]
[394878952,1764052444251,-543.2810542,6.616e-05,2]
[394878953,1764052444288,-543.2810542,6.616e-05,2]
[394878954,1764052444324,-543.2810542,6.616e-05,2]
[394878955,1764052444360,-543.2810542,6.616e-05,2]
[394878956,1764052446188,-4170.28496664,6.55e-05,2]
[394878957,1764052446327,-1659.44006672,6.55e-05,2]
[394878958,1764052446364,-543.2810542,6.616e-05,2]
[394878959,1764052446400,-543.2810542,6.616e-05,2]
[394878960,1764052446436,-543.2810542,6.616e-05,2]
[394878961,1764052446473,-543.2810542,6.616e-05,2]
[394878962,1764052446508,-543.2810542,6.616e-05,2]
[394878963,1764052446544,-543.2810542,6.616e-05,2]
[394878964,1764052446646,-543.2810542,6.616e-05,2]
[394878965,1764052446683,-543.2810542,6.616e-05,2]
[394878966,1764052446720,-543.2810542,6.616e-05,2]
[394878967,1764052446756,-543.2810542,6.616e-05,2]
[394878968,1764052446794,-543.2810542,6.616e-05,2]
[394878969,1764052446830,-543.2810542,6.616e-05,2]
[394878970,1764052446867,-543.2810542,6.616e-05,2]
[394878971,1764052446904,-543.28105421,6.616e-05,2]
[394878972,1764052446946,-543.28105421,6.616e-05,2]
[394878973,1764052447066,-543.28105421,6.616e-05,2]
[394878974,1764052447103,-543.28105421,6.616e-05,2]
[394878975,1764052447138,-543.28105421,6.616e-05,2]
[394878976,1764052447174,-543.28105421,6.616e-05,2]
[394878977,1764052447211,-543.28105421,6.616e-05,2]
[394878978,1764052447247,-543.28105421,6.616e-05,2]
[394878979,1764052447284,-543.28105421,6.616e-05,2]
[394878980,1764052454033,2394.07524106,6.558e-05,2]
[394878981,1764052454057,675.02164084,6.558e-05,2]
[394878982,1764052455586,-3069.0968819,6.624e-05,2]
[394878983,1764052471183,-248.86279623,6.646e-05,2]
[394878984,1764052471212,-248.86279623,6.713e-05,2]
[394878985,1764052479603,248.86279623,6.713e-05,2]
[394878987,1764052486814,-248.86279623,6.781e-05,2]
[394878988,1764052487870,248.86279623,6.713e-05,2]
[394878992,1764052507132,-1134.80724679,7.008e-05,2]
[394878993,1764052513133,1025.5963556,7.008e-05,2]
[394878995,1764052528080,1134.80724679,7.008e-05,2]
[394879003,1764052550313,1134.80724679,7.008e-05,2]
[394879005,1764052565940,1699.32679066,6.979e-05,2]
[394879006,1764052572974,1134.80724679,7.008e-05,2]
[394879007,1764052595126,1134.80724679,7.008e-05,2]
[394879008,1764052618083,1134.80724679,7.008e-05,2]
[394879010,1764052640743,1134.80724679,7.008e-05,2]
[394879013,1764052663332,1134.80724679,7.008e-05,2]
[394879014,1764052678895,1134.80724679,7.008e-05,2]
[394879030,1764052896608,396.3943016,6.993e-05,2]
[394879034,1764052919055,396.3943016,6.993e-05,2]
[394879035,1764052940967,396.3943016,6.993e-05,2]
[394879037,1764052963167,396.3943016,6.993e-05,2]
[394879042,1764052985683,396.3943016,6.993e-05,2]
[394879045,1764053007840,396.3943016,6.993e-05,2]
[394879047,1764053030028,396.3943016,6.993e-05,2]
[394879052,1764053052593,396.3943016,6.993e-05,2]
[394879056,1764053074760,396.3943016,6.993e-05,2]
[394879057,1764053082800,396.3943016,6.993e-05,2]
[394879084,1764053299856,256.48906643,6.98e-05,2]
[394879085,1764053322664,256.48906643,6.98e-05,2]
[394879086,1764053344924,256.48906643,6.98e-05,2]
[394879087,1764053367125,256.48906643,6.98e-05,2]
[394879098,1764053389123,256.48906643,6.98e-05,2]
[394879100,1764053412259,256.48906643,6.98e-05,2]
[394879114,1764053432526,-256.48906643,7.05e-05,2]
[394879116,1764053432536,-249.64331468,7.158e-05,2]
[394879119,1764053432547,-6.84575175,7.158e-05,2]
[394879121,1764053432556,-494.03512686,7.353e-05,2]
[394879122,1764053432565,-135.22323248,7.353e-05,2]
[394879133,1764053434732,256.48906643,6.98e-05,2]
[394879134,1764053438413,-80.93777396,7.353e-05,2]
[394879135,1764053438422,-500.0,7.353e-05,2]
[394879136,1764053438432,-168.0755025,7.353e-05,2]
[394879137,1764053438442,-500.0,7.353e-05,2]
[394879138,1764053438451,-429.9957191,7.353e-05,2]
[394879139,1764053438465,-365.9618199,7.353e-05,2]
[394879140,1764053438477,-134.0381801,7.353e-05,2]
[394879141,1764053438486,-396.3943016,7.36e-05,2]
[394879142,1764053438495,-903.0,7.371e-05,2]
[394879143,1764053438505,-300.0,7.371e-05,2]
[394879144,1764053438514,-225.0,7.371e-05,2]
[394879145,1764053438524,-500.0,7.371e-05,2]
[394879146,1764053438534,-170.49008038,7.371e-05,2]
[394879147,1764053438543,-500.0,7.371e-05,2]
[394879148,1764053438553,-363.41237386,7.371e-05,2]
[394879149,1764053438562,-500.0,7.371e-05,2]
[394879150,1764053438572,-503.99626395,7.371e-05,2]
[394879151,1764053438582,-500.0,7.371e-05,2]
[394879152,1764053438591,-500.0,7.371e-05,2]
[394879153,1764053438600,-451.06512537,7.371e-05,2]
[394879154,1764053438609,-500.0,7.371e-05,2]
[394879155,1764053438618,-111093.03657413,7.372e-05,2]
[394879310,1764053441974,-0.00154247,7.372e-05,2]
[394879312,1764053441985,-778906.9618834,7.372e-05,2]
[394879314,1764053441994,-396.3943016,7.41e-05,2]
[394879316,1764053442004,-3389.0,7.423e-05,2]
[394879318,1764053442013,-1200.0,7.424e-05,2]
[394879320,1764053442022,-562.78447423,7.426e-05,2]
[394879322,1764053442031,-562.78447423,7.426e-05,2]
[394879324,1764053442040,-562.78447423,7.426e-05,2]
[394879326,1764053442050,-562.78447423,7.426e-05,2]
[394879328,1764053442059,-562.78447423,7.426e-05,2]
[394879330,1764053442069,-562.78447423,7.426e-05,2]
[394879332,1764053442078,-562.78447423,7.426e-05,2]
[394879335,1764053442088,-562.78447423,7.426e-05,2]
[394879336,1764053442096,-562.78447423,7.426e-05,2]
[394879338,1764053442106,-562.78447423,7.426e-05,2]
[394879340,1764053442115,-562.78447423,7.426e-05,2]
[394879342,1764053442125,-500.0,7.426e-05,2]
[394879345,1764053442135,-396.3943016,7.43e-05,2]
[394879347,1764053442145,-171.769,7.437e-05,2]
[394879348,1764053442154,-263.82445483,7.471e-05,2]
[394879349,1764053442166,-300.0,7.472e-05,2]
[394879350,1764053442176,-300.0,7.472e-05,2]
[394879351,1764053442186,-300.0,7.472e-05,2]
[394879352,1764053442196,-300.0,7.472e-05,2]
[394879353,1764053442206,-300.0,7.472e-05,2]
[394879354,1764053442216,-300.0,7.472e-05,2]
[394879355,1764053442225,-300.0,7.472e-05,2]
[394879356,1764053442235,-300.0,7.472e-05,2]
[394879357,1764053442244,-300.0,7.472e-05,2]
[394879358,1764053442254,-300.0,7.472e-05,2]
[394879359,1764053442263,-300.0,7.472e-05,2]
[394879360,1764053442272,-300.0,7.472e-05,2]
[394879361,1764053442281,-300.0,7.472e-05,2]
[394879362,1764053442290,-300.0,7.472e-05,2]
[394879363,1764053442300,-300.0,7.472e-05,2]
[394879364,1764053442309,-600.0,7.472e-05,2]
[394879365,1764053442318,-151.19917669,7.472e-05,2]
[394879367,1764053442327,-151.0,7.472e-05,2]
[394879369,1764053442336,-151.0,7.472e-05,2]
[394879371,1764053442346,-151.0,7.472e-05,2]
[394879373,1764053442354,-151.0,7.472e-05,2]
[394879375,1764053442363,-151.0,7.472e-05,2]
[394879377,1764053442374,-222.2552176,7.472e-05,2]
[394879379,1764053442385,-500.0,7.472e-05,2]
[394879381,1764053442394,-151.0,7.472e-05,2]
[394879383,1764053442405,-151.0,7.472e-05,2]
[394879385,1764053442415,-151.12262787,7.472e-05,2]
[394879387,1764053442425,-151.0,7.472e-05,2]
[394879389,1764053442434,-151.0,7.472e-05,2]
[394879391,1764053442443,-151.0,7.472e-05,2]
[394879393,1764053442454,-151.0,7.472e-05,2]
[394879395,1764053442463,-151.0,7.472e-05,2]
[394879397,1764053442472,-151.0,7.472e-05,2]
[394879399,1764053442482,-151.0,7.472e-05,2]
[394879401,1764053442492,-151.0,7.472e-05,2]
[394879403,1764053442502,-151.42488398,7.472e-05,2]
[394879405,1764053442511,-151.0,7.472e-05,2]
[394879407,1764053442520,-151.0,7.472e-05,2]
[394879409,1764053442529,-151.0,7.472e-05,2]
[394879411,1764053442538,-151.0,7.472e-05,2]
[394879413,1764053442547,-151.0,7.472e-05,2]
[394879415,1764053442557,-151.0,7.472e-05,2]
[394879417,1764053442566,-152.76380238,7.472e-05,2]
[394879419,1764053442575,-151.0,7.472e-05,2]
[394879421,1764053442584,-151.0,7.472e-05,2]
[394879423,1764053442594,-151.0,7.472e-05,2]
[394879425,1764053442603,-500.0,7.472e-05,2]
[394879427,1764053442612,-990.0,7.49e-05,2]
[394879429,1764053442621,-632.12,7.49e-05,2]
[394879431,1764053442631,-2152.0,7.49e-05,2]
[394879433,1764053442640,-414.0,7.49e-05,2]
[394879435,1764053442649,-2035.75881862,7.603e-05,2]
[394879437,1764053442658,-151.0,7.609e-05,2]
[394879439,1764053442667,-151.0,7.609e-05,2]
[394879441,1764053442676,-151.0,7.609e-05,2]
[394879443,1764053442685,-151.0,7.609e-05,2]
[394879445,1764053442695,-151.0,7.609e-05,2]
[394879447,1764053442705,-508.71007077,7.609e-05,2]
[394879449,1764053442714,-151.0,7.609e-05,2]
[394879451,1764053442724,-151.0,7.609e-05,2]
[394879453,1764053442733,-151.0,7.609e-05,2]
[394879455,1764053442743,-151.0,7.609e-05,2]
[394879457,1764053442753,-151.0,7.609e-05,2]
[394879459,1764053442762,-151.0,7.609e-05,2]
[394879461,1764053442771,-151.0,7.609e-05,2]
[394879463,1764053442780,-151.0,7.609e-05,2]
[394879465,1764053442790,-151.0,7.609e-05,2]
[394879467,1764053442799,-151.0,7.609e-05,2]
[394879469,1764053442808,-151.0,7.609e-05,2]
[394879471,1764053442816,-151.0,7.609e-05,2]
[394879473,1764053442825,-151.0,7.609e-05,2]
[394879475,1764053442835,-151.0,7.609e-05,2]
[394879477,1764053442844,-151.0,7.609e-05,2]
[394879479,1764053442852,-151.0,7.609e-05,2]
[394879481,1764053442861,-3069.0968819,7.637e-05,2]
[394879483,1764053442870,-198.45710674,7.746e-05,2]
[394879485,1764053442879,-198.47753802,7.746e-05,2]
[394879486,1764053442888,-198.54630491,7.746e-05,2]